[Event "Titled Tuesday Blitz August 16 Early 2022"]
[White "Agasarov, Benik"]
[Black "Pasti, Aron"]
[WhiteFideId "13314823"]
[BlackFideId "785857"]
[WhiteElo "2152"]
[BlackElo "2079"]
[Result "0-1"]
[Round "01"]
[TimeControl "180+2"]
[Date "2022.08.18"]
[WhiteClock "0:00:00"]
[BlackClock "0:00:00"]

1. e4 {[%clk 0:00:00]}  c5 {[%clk 0:00:00]} 2. Nf3 {[%clk 0:00:00]}  e6 {[%clk 0:00:00]} 3. d4 {[%clk 0:00:00]}  cxd4 {[%clk 0:00:00]} 4. Nxd4 {[%clk 0:00:00]}  Nc6 {[%clk 0:00:00]} 5. Nc3 {[%clk 0:00:00]}  Qc7 {[%clk 0:00:00]} 6. g4 {[%clk 0:00:00]}  a6 {[%clk 0:00:00]} 7. Nxc6 {[%clk 0:00:00]}  bxc6 {[%clk 0:00:00]} 8. Bg2 {[%clk 0:00:00]}  d5 {[%clk 0:00:00]} 9. Qd3 {[%clk 0:00:00]}  Nf6 {[%clk 0:00:00]} 10. g5 {[%clk 0:00:00]}  Nd7 {[%clk 0:00:00]} 11. O-O {[%clk 0:00:00]}  Bc5 {[%clk 0:00:00]} 12. Kh1 {[%clk 0:00:00]}  O-O {[%clk 0:00:00]} 13. f4 {[%clk 0:00:00]}  Bb7 {[%clk 0:00:00]} 14. f5 {[%clk 0:00:00]}  dxe4 {[%clk 0:00:00]} 15. Nxe4 {[%clk 0:00:00]}  exf5 {[%clk 0:00:00]} 16. Nxc5 {[%clk 0:00:00]}  Nxc5 {[%clk 0:00:00]} 17. Qxf5 {[%clk 0:00:00]}  Ne6 {[%clk 0:00:00]} 18. Bd2 {[%clk 0:00:00]}  c5 {[%clk 0:00:00]} 19. Bc3 {[%clk 0:00:00]}  Bxg2+ {[%clk 0:00:00]} 20. Kxg2 {[%clk 0:00:00]}  Qc6+ {[%clk 0:00:00]} 21. Kg1 {[%clk 0:00:00]}  Rad8 {[%clk 0:00:00]} 22. Rad1 {[%clk 0:00:00]}  Nd4 {[%clk 0:00:00]} 23. Qf2 {[%clk 0:00:00]}  Nf3+ {[%clk 0:00:00]} 24. Kh1 {[%clk 0:00:00]}  Ne1+ {[%clk 0:00:00]} 25. Kg1 {[%clk 0:00:00]}  Rxd1 {[%clk 0:00:00]} 26. Bxe1 {[%clk 0:00:00]}  Qe6 {[%clk 0:00:00]} 27. h4 {[%clk 0:00:00]}  Re8 {[%clk 0:00:00]} 28. Bc3 {[%clk 0:00:00]}  Qg4+ {[%clk 0:00:00]} 29. Qg2 {[%clk 0:00:00]}  Rxf1+ {[%clk 0:00:00]} 30. Kxf1 {[%clk 0:00:00]}  Qd1+ {[%clk 0:00:00]} 31. Kf2 {[%clk 0:00:00]}  Re2+ {[%clk 0:00:00]} 0-1


[Site "https://www.chess.com"]

[Event "Titled Tuesday Blitz August 16 Early 2022"]
[White "Aggelis, Nikolaos"]
[Black "Gonzalez Vega, Alejandro"]
[WhiteFideId "4213220"]
[BlackFideId "3510042"]
[WhiteElo "2154"]
[BlackElo "2092"]
[Result "1-0"]
[Round "01"]
[TimeControl "180+2"]
[Date "2022.08.18"]
[WhiteClock "0:00:00"]
[BlackClock "0:00:00"]

1. d4 {[%clk 0:00:00]}  d5 {[%clk 0:00:00]} 2. Nf3 {[%clk 0:00:00]}  Nf6 {[%clk 0:00:00]} 3. c4 {[%clk 0:00:00]}  e6 {[%clk 0:00:00]} 4. g3 {[%clk 0:00:00]}  Be7 {[%clk 0:00:00]} 5. Bg2 {[%clk 0:00:00]}  O-O {[%clk 0:00:00]} 6. O-O {[%clk 0:00:00]}  dxc4 {[%clk 0:00:00]} 7. Qc2 {[%clk 0:00:00]}  a6 {[%clk 0:00:00]} 8. a4 {[%clk 0:00:00]}  Nc6 {[%clk 0:00:00]} 9. Qxc4 {[%clk 0:00:00]}  Na5 {[%clk 0:00:00]} 10. Qc3 {[%clk 0:00:00]}  Nc6 {[%clk 0:00:00]} 11. Bf4 {[%clk 0:00:00]}  Nd5 {[%clk 0:00:00]} 12. Qc4 {[%clk 0:00:00]}  Na5 {[%clk 0:00:00]} 13. Qc2 {[%clk 0:00:00]}  Bd7 {[%clk 0:00:00]} 14. Nc3 {[%clk 0:00:00]}  Nxf4 {[%clk 0:00:00]} 15. gxf4 {[%clk 0:00:00]}  c5 {[%clk 0:00:00]} 16. dxc5 {[%clk 0:00:00]}  Bxc5 {[%clk 0:00:00]} 17. Rfd1 {[%clk 0:00:00]}  Qe7 {[%clk 0:00:00]} 18. Ne5 {[%clk 0:00:00]}  Bc6 {[%clk 0:00:00]} 19. Nxc6 {[%clk 0:00:00]}  Nxc6 {[%clk 0:00:00]} 20. Bxc6 {[%clk 0:00:00]}  bxc6 {[%clk 0:00:00]} 21. Ne4 {[%clk 0:00:00]}  Ba7 {[%clk 0:00:00]} 22. e3 {[%clk 0:00:00]}  Qh4 {[%clk 0:00:00]} 23. Qe2 {[%clk 0:00:00]}  Qh3 {[%clk 0:00:00]} 24. Qf1 {[%clk 0:00:00]}  Qf5 {[%clk 0:00:00]} 25. Ng3 {[%clk 0:00:00]}  Qa5 {[%clk 0:00:00]} 26. Qe1 {[%clk 0:00:00]}  Qxe1+ {[%clk 0:00:00]} 27. Rxe1 {[%clk 0:00:00]}  Rab8 {[%clk 0:00:00]} 28. Re2 {[%clk 0:00:00]}  Rb3 {[%clk 0:00:00]} 29. Rc2 {[%clk 0:00:00]}  c5 {[%clk 0:00:00]} 30. Ne4 {[%clk 0:00:00]}  Rfb8 {[%clk 0:00:00]} 31. Nxc5 {[%clk 0:00:00]}  Bxc5 {[%clk 0:00:00]} 32. Rxc5 {[%clk 0:00:00]}  Rxb2 {[%clk 0:00:00]} 33. Ra5 {[%clk 0:00:00]}  R8b6 {[%clk 0:00:00]} 34. Rc1 {[%clk 0:00:00]}  g6 {[%clk 0:00:00]} 35. Rac5 {[%clk 0:00:00]}  Kg7 {[%clk 0:00:00]} 36. a5 {[%clk 0:00:00]}  R6b5 {[%clk 0:00:00]} 37. Kg2 {[%clk 0:00:00]}  Ra2 {[%clk 0:00:00]} 38. Rc7 {[%clk 0:00:00]}  Raxa5 {[%clk 0:00:00]} 39. Ra7 {[%clk 0:00:00]}  Rc5 {[%clk 0:00:00]} 40. Rd1 {[%clk 0:00:00]}  Rc2 {[%clk 0:00:00]} 41. Rdd7 {[%clk 0:00:00]}  Rf5 {[%clk 0:00:00]} 42. Rxa6 {[%clk 0:00:00]}  h5 {[%clk 0:00:00]} 43. h4 {[%clk 0:00:00]}  Kf6 {[%clk 0:00:00]} 44. Raa7 {[%clk 0:00:00]}  Kg7 {[%clk 0:00:00]} 45. Rab7 {[%clk 0:00:00]}  Re2 {[%clk 0:00:00]} 46. Kf3 {[%clk 0:00:00]}  Rc2 {[%clk 0:00:00]} 47. Ra7 {[%clk 0:00:00]}  Rc3 {[%clk 0:00:00]} 48. Re7 {[%clk 0:00:00]}  Rc4 {[%clk 0:00:00]} 49. Reb7 {[%clk 0:00:00]}  Rf6 {[%clk 0:00:00]} 50. Rb8 {[%clk 0:00:00]}  Rc3 {[%clk 0:00:00]} 51. Raa8 {[%clk 0:00:00]}  Rf5 {[%clk 0:00:00]} 52. Ke4 {[%clk 0:00:00]}  Rc4+ {[%clk 0:00:00]} 53. Kd3 {[%clk 0:00:00]}  Rcc5 {[%clk 0:00:00]} 54. Ke2 {[%clk 0:00:00]}  Rc2+ {[%clk 0:00:00]} 55. Kf3 {[%clk 0:00:00]}  Rcc5 {[%clk 0:00:00]} 56. Kg3 {[%clk 0:00:00]}  Rc3 {[%clk 0:00:00]} 57. Rd8 {[%clk 0:00:00]}  Kf6 {[%clk 0:00:00]} 58. Rdb8 {[%clk 0:00:00]}  e5 {[%clk 0:00:00]} 59. Ra6+ {[%clk 0:00:00]}  Kg7 {[%clk 0:00:00]} 60. fxe5 {[%clk 0:00:00]}  Rxe5 {[%clk 0:00:00]} 61. Rb4 {[%clk 0:00:00]}  Rf5 {[%clk 0:00:00]} 62. Raa4 {[%clk 0:00:00]}  Rcc5 {[%clk 0:00:00]} 63. Rf4 {[%clk 0:00:00]}  Rxf4 {[%clk 0:00:00]} 64. Rxf4 {[%clk 0:00:00]}  Rc2 {[%clk 0:00:00]} 65. Rd4 {[%clk 0:00:00]}  Rc6 {[%clk 0:00:00]} 66. f3 {[%clk 0:00:00]}  Rf6 {[%clk 0:00:00]} 67. e4 {[%clk 0:00:00]}  Re6 {[%clk 0:00:00]} 68. Rd7 {[%clk 0:00:00]}  Kf6 {[%clk 0:00:00]} 69. Kf4 {[%clk 0:00:00]}  Re7 {[%clk 0:00:00]} 70. Rd6+ {[%clk 0:00:00]}  Re6 {[%clk 0:00:00]} 71. Rd8 {[%clk 0:00:00]}  Re7 {[%clk 0:00:00]} 72. Ra8 {[%clk 0:00:00]}  Re6 {[%clk 0:00:00]} 73. Ra7 {[%clk 0:00:00]}  Re7 {[%clk 0:00:00]} 74. Ra6+ {[%clk 0:00:00]}  Re6 {[%clk 0:00:00]} 75. e5+ {[%clk 0:00:00]}  Ke7 {[%clk 0:00:00]} 76. Ra7+ {[%clk 0:00:00]}  Kf8 {[%clk 0:00:00]} 77. Ke4 {[%clk 0:00:00]}  Kg7 {[%clk 0:00:00]} 78. f4 {[%clk 0:00:00]}  Rb6 {[%clk 0:00:00]} 79. Ra4 {[%clk 0:00:00]}  Rc6 {[%clk 0:00:00]} 80. f5 {[%clk 0:00:00]}  gxf5+ {[%clk 0:00:00]} 81. Kxf5 {[%clk 0:00:00]}  Re6 {[%clk 0:00:00]} 82. Re4 {[%clk 0:00:00]}  Kh7 {[%clk 0:00:00]} 83. Kg5 {[%clk 0:00:00]}  Kg7 {[%clk 0:00:00]} 84. Kxh5 {[%clk 0:00:00]}  f6 {[%clk 0:00:00]} 85. exf6+ {[%clk 0:00:00]}  Kxf6 {[%clk 0:00:00]} 86. Rxe6+ {[%clk 0:00:00]}  Kg7 {[%clk 0:00:00]} 87. Kg5 {[%clk 0:00:00]} 1-0


[Site "https://www.chess.com"]

[Event "Titled Tuesday Blitz August 16 Early 2022"]
[White "Andreikin, Dmitry"]
[Black "Goltseva, Ekaterina"]
[WhiteFideId "4158814"]
[BlackFideId "24173770"]
[WhiteElo "2736"]
[BlackElo "2086"]
[Result "1-0"]
[Round "01"]
[TimeControl "180+1"]
[Date "2022.08.16"]
[WhiteClock "0:01:57"]
[BlackClock "0:00:02"]

1. d4 {[%clk 0:03:00]}  Nf6 {[%clk 0:02:58]} 2. c4 {[%clk 0:03:01]}  e6 {[%clk 0:02:58]} 3. Nf3 {[%clk 0:03:00]}  d5 {[%clk 0:02:57]} 4. g3 {[%clk 0:03:00]}  Bb4+ {[%clk 0:02:55]} 5. Bd2 {[%clk 0:03:00]}  Be7 {[%clk 0:02:55]} 6. Bg2 {[%clk 0:03:00]}  O-O {[%clk 0:02:56]} 7. O-O {[%clk 0:03:01]}  Nbd7 {[%clk 0:02:57]} 8. Nc3 {[%clk 0:03:00]}  dxc4 {[%clk 0:02:55]} 9. Bf4 {[%clk 0:02:59]}  Nd5 {[%clk 0:02:34]} 10. Rc1 {[%clk 0:02:50]}  Nxf4 {[%clk 0:02:23]} 11. gxf4 {[%clk 0:02:51]}  c5 {[%clk 0:02:24]} 12. d5 {[%clk 0:02:51]}  Nf6 {[%clk 0:02:12]} 13. Ne5 {[%clk 0:02:47]}  exd5 {[%clk 0:01:53]} 14. Nxd5 {[%clk 0:02:46]}  Nxd5 {[%clk 0:01:38]} 15. Qxd5 {[%clk 0:02:47]}  Be6 {[%clk 0:01:31]} 16. Qxb7 {[%clk 0:02:45]}  Rb8 {[%clk 0:01:24]} 17. Qxa7 {[%clk 0:02:45]}  Qe8 {[%clk 0:00:55]} 18. Bc6 {[%clk 0:02:41]}  Qd8 {[%clk 0:00:40]} 19. Bg2 {[%clk 0:02:39]}  Qe8 {[%clk 0:00:27]} 20. Nc6 {[%clk 0:02:34]}  Bd6 {[%clk 0:00:18]} 21. Nxb8 {[%clk 0:02:34]}  Bxb8 {[%clk 0:00:18]} 22. Qxc5 {[%clk 0:02:33]}  Bxf4 {[%clk 0:00:19]} 23. e3 {[%clk 0:02:32]}  Bb8 {[%clk 0:00:14]} 24. Rfd1 {[%clk 0:02:31]}  Qa4 {[%clk 0:00:13]} 25. Bd5 {[%clk 0:02:28]}  Bg4 {[%clk 0:00:10]} 26. Rd4 {[%clk 0:02:17]}  Be2 {[%clk 0:00:05]} 27. Bxc4 {[%clk 0:02:15]}  Bxc4 {[%clk 0:00:04]} 28. Qxc4 {[%clk 0:02:15]}  Qa5 {[%clk 0:00:03]} 29. Qd5 {[%clk 0:02:11]}  Qb6 {[%clk 0:00:02]} 30. b4 {[%clk 0:02:06]}  Qh6 {[%clk 0:00:02]} 31. Qg2 {[%clk 0:02:03]}  Be5 {[%clk 0:00:02]} 32. Rdc4 {[%clk 0:02:03]}  Qb6 {[%clk 0:00:02]} 33. a3 {[%clk 0:02:02]}  g6 {[%clk 0:00:03]} 34. Rc8 {[%clk 0:02:02]}  Bb2 {[%clk 0:00:02]} 35. Rxf8+ {[%clk 0:02:01]}  Kxf8 {[%clk 0:00:03]} 36. Rc8+ {[%clk 0:02:00]}  Kg7 {[%clk 0:00:04]} 37. Qc6 {[%clk 0:02:01]}  Qa7 {[%clk 0:00:02]} 38. Ra8 {[%clk 0:01:56]}  Qe7 {[%clk 0:00:02]} 39. Qc5 {[%clk 0:01:57]}  Qf6 {[%clk 0:00:02]} 40. Qf8# {[%clk 0:01:57]} 1-0


[Site "https://www.chess.com"]

[Event "Titled Tuesday Blitz August 16 Early 2022"]
[White "Arslanov, Shamil"]
[Black "Kaasen, Tor Fredrik"]
[WhiteFideId "4192826"]
[BlackFideId "1516647"]
[WhiteElo "2338"]
[BlackElo "2335"]
[Result "0-1"]
[Round "01"]
[TimeControl "180+1"]
[Date "2022.08.16"]
[WhiteClock "0:00:43"]
[BlackClock "0:00:44"]

1. e4 {[%clk 0:02:39]}  e5 {[%clk 0:03:00]} 2. Nf3 {[%clk 0:02:39]}  Nc6 {[%clk 0:03:00]} 3. Bc4 {[%clk 0:02:38]}  Nf6 {[%clk 0:02:59]} 4. d4 {[%clk 0:02:38]}  exd4 {[%clk 0:02:57]} 5. O-O {[%clk 0:02:39]}  Nxe4 {[%clk 0:02:35]} 6. Re1 {[%clk 0:02:16]}  d5 {[%clk 0:02:35]} 7. Nc3 {[%clk 0:02:14]}  dxc4 {[%clk 0:02:09]} 8. Rxe4+ {[%clk 0:02:13]}  Be7 {[%clk 0:02:08]} 9. Nxd4 {[%clk 0:02:13]}  f5 {[%clk 0:02:07]} 10. Bh6 {[%clk 0:02:12]}  O-O {[%clk 0:01:44]} 11. Nxc6 {[%clk 0:01:49]}  bxc6 {[%clk 0:01:44]} 12. Rd4 {[%clk 0:01:49]}  Qe8 {[%clk 0:01:30]} 13. Bf4 {[%clk 0:01:48]}  Be6 {[%clk 0:01:28]} 14. Qe2 {[%clk 0:01:35]}  Bc5 {[%clk 0:01:23]} 15. Rxc4 {[%clk 0:01:35]}  Bb6 {[%clk 0:01:11]} 16. Ra4 {[%clk 0:01:19]}  Qf7 {[%clk 0:01:09]} 17. Re1 {[%clk 0:01:18]}  Rfe8 {[%clk 0:01:09]} 18. Qf3 {[%clk 0:01:15]}  Bb3 {[%clk 0:01:02]} 19. Rxe8+ {[%clk 0:00:51]}  Rxe8 {[%clk 0:01:03]} 20. g3 {[%clk 0:00:48]}  Bxa4 {[%clk 0:01:01]} 21. Nxa4 {[%clk 0:00:49]}  Qc4 {[%clk 0:00:48]} 22. Qb3 {[%clk 0:00:44]}  Qxb3 {[%clk 0:00:48]} 23. axb3 {[%clk 0:00:44]}  Re2 {[%clk 0:00:48]} 24. Nxb6 {[%clk 0:00:43]}  cxb6 {[%clk 0:00:48]} 25. Bb8 {[%clk 0:00:43]}  a6 {[%clk 0:00:44]} 26. Ba7 {[%clk 0:00:42]}  b5 {[%clk 0:00:44]} 27. Bd4 {[%clk 0:00:43]}  Rxc2 {[%clk 0:00:44]} 0-1


[Site "https://www.chess.com"]

[Event "Titled Tuesday Blitz August 16 Early 2022"]
[White "Astafurov, Arseniy"]
[Black "Bok, Benjamin"]
[WhiteFideId "24175218"]
[BlackFideId "1017063"]
[WhiteElo "2163"]
[BlackElo "2658"]
[Result "0-1"]
[Round "01"]
[TimeControl "180+1"]
[Date "2022.08.16"]
[WhiteClock "0:00:11"]
[BlackClock "0:00:44"]

1. c4 {[%clk 0:02:58]}  c6 {[%clk 0:02:56]} 2. e4 {[%clk 0:02:58]}  d5 {[%clk 0:02:56]} 3. exd5 {[%clk 0:02:59]}  cxd5 {[%clk 0:02:57]} 4. d4 {[%clk 0:03:00]}  Nf6 {[%clk 0:02:57]} 5. Nc3 {[%clk 0:03:00]}  e6 {[%clk 0:02:56]} 6. Nf3 {[%clk 0:03:01]}  Be7 {[%clk 0:02:55]} 7. cxd5 {[%clk 0:02:57]}  Nxd5 {[%clk 0:02:55]} 8. Bd3 {[%clk 0:02:57]}  O-O {[%clk 0:02:54]} 9. O-O {[%clk 0:02:57]}  Nf6 {[%clk 0:02:53]} 10. Re1 {[%clk 0:02:57]}  b6 {[%clk 0:02:53]} 11. Bg5 {[%clk 0:02:40]}  Bb7 {[%clk 0:02:49]} 12. Ne5 {[%clk 0:02:39]}  Nc6 {[%clk 0:02:41]} 13. Nxc6 {[%clk 0:02:30]}  Bxc6 {[%clk 0:02:40]} 14. Bc2 {[%clk 0:02:25]}  Rc8 {[%clk 0:02:34]} 15. Qd3 {[%clk 0:02:24]}  g6 {[%clk 0:02:34]} 16. Rad1 {[%clk 0:02:24]}  Nd5 {[%clk 0:02:31]} 17. Bxe7 {[%clk 0:02:13]}  Qxe7 {[%clk 0:02:32]} 18. Bb3 {[%clk 0:02:10]}  Rfd8 {[%clk 0:02:30]} 19. Qg3 {[%clk 0:01:56]}  Nxc3 {[%clk 0:02:22]} 20. bxc3 {[%clk 0:01:55]}  Bd5 {[%clk 0:02:22]} 21. Re5 {[%clk 0:01:45]}  Qa3 {[%clk 0:01:43]} 22. Rb1 {[%clk 0:01:05]}  b5 {[%clk 0:01:26]} 23. h3 {[%clk 0:01:01]}  a6 {[%clk 0:01:25]} 24. Re3 {[%clk 0:00:49]}  Bxb3 {[%clk 0:01:12]} 25. axb3 {[%clk 0:00:50]}  b4 {[%clk 0:01:12]} 26. h4 {[%clk 0:00:37]}  Qa2 {[%clk 0:01:09]} 27. Rbe1 {[%clk 0:00:31]}  Qxb3 {[%clk 0:01:08]} 28. cxb4 {[%clk 0:00:32]}  Qxb4 {[%clk 0:01:09]} 29. h5 {[%clk 0:00:29]}  Qxd4 {[%clk 0:01:08]} 30. hxg6 {[%clk 0:00:29]}  hxg6 {[%clk 0:01:09]} 31. Qg5 {[%clk 0:00:25]}  Rd5 {[%clk 0:01:07]} 32. Qe7 {[%clk 0:00:21]}  Rf5 {[%clk 0:00:53]} 33. g3 {[%clk 0:00:14]}  Qf6 {[%clk 0:00:50]} 34. Qd7 {[%clk 0:00:14]}  Rd8 {[%clk 0:00:48]} 35. Qc7 {[%clk 0:00:12]}  Rxf2 {[%clk 0:00:47]} 36. Qxd8+ {[%clk 0:00:12]}  Qxd8 {[%clk 0:00:47]} 37. Kxf2 {[%clk 0:00:12]}  a5 {[%clk 0:00:48]} 38. Re4 {[%clk 0:00:11]}  Qb6+ {[%clk 0:00:45]} 39. Kg2 {[%clk 0:00:12]}  a4 {[%clk 0:00:44]} 40. Rxa4 {[%clk 0:00:11]}  Qc6+ {[%clk 0:00:44]} 0-1


[Site "https://www.chess.com"]

[Event "Titled Tuesday Blitz August 16 Early 2022"]
[White "Baches Garcia, Guillermo"]
[Black "Molina, Roberto Junio Brito"]
[WhiteFideId "2209764"]
[BlackFideId "2109450"]
[WhiteElo "2326"]
[BlackElo "2403"]
[Result "0-1"]
[Round "01"]
[TimeControl "180+2"]
[Date "2022.08.18"]
[WhiteClock "0:00:00"]
[BlackClock "0:00:00"]

1. e4 {[%clk 0:00:00]}  c6 {[%clk 0:00:00]} 2. d4 {[%clk 0:00:00]}  d5 {[%clk 0:00:00]} 3. exd5 {[%clk 0:00:00]}  cxd5 {[%clk 0:00:00]} 4. Bd3 {[%clk 0:00:00]}  Nc6 {[%clk 0:00:00]} 5. c3 {[%clk 0:00:00]}  Qc7 {[%clk 0:00:00]} 6. Na3 {[%clk 0:00:00]}  a6 {[%clk 0:00:00]} 7. Nc2 {[%clk 0:00:00]}  e6 {[%clk 0:00:00]} 8. Nf3 {[%clk 0:00:00]}  Bd6 {[%clk 0:00:00]} 9. O-O {[%clk 0:00:00]}  Nge7 {[%clk 0:00:00]} 10. Re1 {[%clk 0:00:00]}  h6 {[%clk 0:00:00]} 11. c4 {[%clk 0:00:00]}  dxc4 {[%clk 0:00:00]} 12. Bxc4 {[%clk 0:00:00]}  b5 {[%clk 0:00:00]} 13. Bf1 {[%clk 0:00:00]}  O-O {[%clk 0:00:00]} 14. Bd2 {[%clk 0:00:00]}  Bb7 {[%clk 0:00:00]} 15. Rc1 {[%clk 0:00:00]}  Rac8 {[%clk 0:00:00]} 16. Ne3 {[%clk 0:00:00]}  Rfd8 {[%clk 0:00:00]} 17. Ng4 {[%clk 0:00:00]}  Bf4 {[%clk 0:00:00]} 18. g3 {[%clk 0:00:00]}  Bxd2 {[%clk 0:00:00]} 19. Qxd2 {[%clk 0:00:00]}  Nf5 {[%clk 0:00:00]} 20. Bg2 {[%clk 0:00:00]}  Qd6 {[%clk 0:00:00]} 21. Red1 {[%clk 0:00:00]}  Ncxd4 {[%clk 0:00:00]} 22. Nxd4 {[%clk 0:00:00]}  Rxc1 {[%clk 0:00:00]} 23. Rxc1 {[%clk 0:00:00]}  Bxg2 {[%clk 0:00:00]} 24. Kxg2 {[%clk 0:00:00]}  Nxd4 {[%clk 0:00:00]} 25. Ne3 {[%clk 0:00:00]}  Nf5 {[%clk 0:00:00]} 26. Qe2 {[%clk 0:00:00]}  Qe5 {[%clk 0:00:00]} 27. Rc3 {[%clk 0:00:00]}  g6 {[%clk 0:00:00]} 28. Qc2 {[%clk 0:00:00]}  Nxe3+ {[%clk 0:00:00]} 29. Rxe3 {[%clk 0:00:00]}  Qd5+ {[%clk 0:00:00]} 30. f3 {[%clk 0:00:00]}  Qd2+ {[%clk 0:00:00]} 31. Re2 {[%clk 0:00:00]}  Qxc2 {[%clk 0:00:00]} 32. Rxc2 {[%clk 0:00:00]}  Rd3 {[%clk 0:00:00]} 33. Kf2 {[%clk 0:00:00]}  Kg7 {[%clk 0:00:00]} 34. Ke2 {[%clk 0:00:00]}  Rd6 {[%clk 0:00:00]} 35. f4 {[%clk 0:00:00]}  g5 {[%clk 0:00:00]} 36. Ke3 {[%clk 0:00:00]}  gxf4+ {[%clk 0:00:00]} 37. Kxf4 {[%clk 0:00:00]}  Kf6 {[%clk 0:00:00]} 38. Ke4 {[%clk 0:00:00]}  Rd5 {[%clk 0:00:00]} 39. Rc6 {[%clk 0:00:00]}  a5 {[%clk 0:00:00]} 40. b3 {[%clk 0:00:00]}  Rd2 {[%clk 0:00:00]} 41. Rc5 {[%clk 0:00:00]}  Rxh2 {[%clk 0:00:00]} 42. Rxb5 {[%clk 0:00:00]}  Rxa2 {[%clk 0:00:00]} 43. Kf4 {[%clk 0:00:00]}  a4 {[%clk 0:00:00]} 44. bxa4 {[%clk 0:00:00]}  Rxa4+ {[%clk 0:00:00]} 45. Kf3 {[%clk 0:00:00]}  Rd4 {[%clk 0:00:00]} 46. Rh5 {[%clk 0:00:00]}  Kg6 {[%clk 0:00:00]} 47. Ra5 {[%clk 0:00:00]}  Rd5 {[%clk 0:00:00]} 48. Ra8 {[%clk 0:00:00]}  Rf5+ {[%clk 0:00:00]} 49. Kg4 {[%clk 0:00:00]}  h5+ {[%clk 0:00:00]} 50. Kh4 {[%clk 0:00:00]}  e5 {[%clk 0:00:00]} 51. Re8 {[%clk 0:00:00]}  Kf6 {[%clk 0:00:00]} 52. Rh8 {[%clk 0:00:00]}  e4 {[%clk 0:00:00]} 53. Rh6+ {[%clk 0:00:00]}  Ke5 {[%clk 0:00:00]} 54. Re6+ {[%clk 0:00:00]} 0-1


[Site "https://www.chess.com"]

[Event "Titled Tuesday Blitz August 16 Early 2022"]
[White "Balint, Vilmos"]
[Black "Aldokhin, Ivan"]
[WhiteFideId "718050"]
[BlackFideId "24115720"]
[WhiteElo "2059"]
[BlackElo "2246"]
[Result "0-1"]
[Round "01"]
[TimeControl "180+2"]
[Date "2022.08.18"]
[WhiteClock "0:00:00"]
[BlackClock "0:00:00"]

1. Nf3 {[%clk 0:00:00]}  Nf6 {[%clk 0:00:00]} 2. g3 {[%clk 0:00:00]}  g6 {[%clk 0:00:00]} 3. Bg2 {[%clk 0:00:00]}  Bg7 {[%clk 0:00:00]} 4. O-O {[%clk 0:00:00]}  O-O {[%clk 0:00:00]} 5. c4 {[%clk 0:00:00]}  d6 {[%clk 0:00:00]} 6. d4 {[%clk 0:00:00]}  Nbd7 {[%clk 0:00:00]} 7. h3 {[%clk 0:00:00]}  e5 {[%clk 0:00:00]} 8. e3 {[%clk 0:00:00]}  exd4 {[%clk 0:00:00]} 9. exd4 {[%clk 0:00:00]}  Ne4 {[%clk 0:00:00]} 10. Re1 {[%clk 0:00:00]}  Re8 {[%clk 0:00:00]} 11. Nc3 {[%clk 0:00:00]}  Nxc3 {[%clk 0:00:00]} 12. bxc3 {[%clk 0:00:00]}  Nf6 {[%clk 0:00:00]} 13. Bg5 {[%clk 0:00:00]}  Rxe1+ {[%clk 0:00:00]} 14. Nxe1 {[%clk 0:00:00]}  h6 {[%clk 0:00:00]} 15. Bxf6 {[%clk 0:00:00]}  Qxf6 {[%clk 0:00:00]} 16. Rb1 {[%clk 0:00:00]}  Rb8 {[%clk 0:00:00]} 17. Qa4 {[%clk 0:00:00]}  a6 {[%clk 0:00:00]} 18. Qe8+ {[%clk 0:00:00]}  Bf8 {[%clk 0:00:00]} 19. Bd5 {[%clk 0:00:00]}  Qe7 {[%clk 0:00:00]} 20. Qxe7 {[%clk 0:00:00]}  Bxe7 {[%clk 0:00:00]} 21. Kg2 {[%clk 0:00:00]}  b6 {[%clk 0:00:00]} 22. Nd3 {[%clk 0:00:00]}  Bf5 {[%clk 0:00:00]} 23. Re1 {[%clk 0:00:00]}  Bf6 {[%clk 0:00:00]} 24. Nb4 {[%clk 0:00:00]}  a5 {[%clk 0:00:00]} 25. Nc6 {[%clk 0:00:00]}  Rf8 {[%clk 0:00:00]} 26. Ne7+ {[%clk 0:00:00]}  Kg7 {[%clk 0:00:00]} 27. Nxf5+ {[%clk 0:00:00]}  gxf5 {[%clk 0:00:00]} 28. Kf3 {[%clk 0:00:00]}  c5 {[%clk 0:00:00]} 29. dxc5 {[%clk 0:00:00]}  bxc5 {[%clk 0:00:00]} 30. Kf4 {[%clk 0:00:00]}  Bxc3 {[%clk 0:00:00]} 31. Kxf5 {[%clk 0:00:00]}  Bxe1 {[%clk 0:00:00]} 0-1


[Site "https://www.chess.com"]

[Event "Titled Tuesday Blitz August 16 Early 2022"]
[White "Barp, Alberto"]
[Black "Alexikov, Alexander"]
[WhiteFideId "872555"]
[BlackFideId "14103958"]
[WhiteElo "2229"]
[BlackElo "2253"]
[Result "1-0"]
[Round "01"]
[TimeControl "180+2"]
[Date "2022.08.18"]
[WhiteClock "0:00:00"]
[BlackClock "0:00:00"]

1. d4 {[%clk 0:00:00]}  Nf6 {[%clk 0:00:00]} 2. c4 {[%clk 0:00:00]}  g6 {[%clk 0:00:00]} 3. Nc3 {[%clk 0:00:00]}  Bg7 {[%clk 0:00:00]} 4. e4 {[%clk 0:00:00]}  d6 {[%clk 0:00:00]} 5. Nge2 {[%clk 0:00:00]}  O-O {[%clk 0:00:00]} 6. Ng3 {[%clk 0:00:00]}  c5 {[%clk 0:00:00]} 7. d5 {[%clk 0:00:00]}  e6 {[%clk 0:00:00]} 8. Be2 {[%clk 0:00:00]}  exd5 {[%clk 0:00:00]} 9. exd5 {[%clk 0:00:00]}  Re8 {[%clk 0:00:00]} 10. O-O {[%clk 0:00:00]}  a6 {[%clk 0:00:00]} 11. a4 {[%clk 0:00:00]}  b6 {[%clk 0:00:00]} 12. Bf4 {[%clk 0:00:00]}  Ra7 {[%clk 0:00:00]} 13. Qd2 {[%clk 0:00:00]}  Rae7 {[%clk 0:00:00]} 14. Rfe1 {[%clk 0:00:00]}  Qc7 {[%clk 0:00:00]} 15. h3 {[%clk 0:00:00]}  h5 {[%clk 0:00:00]} 16. Bd3 {[%clk 0:00:00]}  Nbd7 {[%clk 0:00:00]} 17. b3 {[%clk 0:00:00]}  Ne5 {[%clk 0:00:00]} 18. Be2 {[%clk 0:00:00]}  Bd7 {[%clk 0:00:00]} 19. Bg5 {[%clk 0:00:00]}  Bc8 {[%clk 0:00:00]} 20. Nge4 {[%clk 0:00:00]}  Ned7 {[%clk 0:00:00]} 21. Ng3 {[%clk 0:00:00]}  Kh7 {[%clk 0:00:00]} 22. f4 {[%clk 0:00:00]}  Kg8 {[%clk 0:00:00]} 23. Bd3 {[%clk 0:00:00]}  Rxe1+ {[%clk 0:00:00]} 24. Rxe1 {[%clk 0:00:00]}  Rxe1+ {[%clk 0:00:00]} 25. Qxe1 {[%clk 0:00:00]}  Bf8 {[%clk 0:00:00]} 26. Nf1 {[%clk 0:00:00]}  Kg7 {[%clk 0:00:00]} 27. Nd2 {[%clk 0:00:00]}  Qd8 {[%clk 0:00:00]} 28. Nf3 {[%clk 0:00:00]}  Be7 {[%clk 0:00:00]} 29. Qd2 {[%clk 0:00:00]}  Nf8 {[%clk 0:00:00]} 30. f5 {[%clk 0:00:00]}  Ng8 {[%clk 0:00:00]} 31. fxg6 {[%clk 0:00:00]}  fxg6 {[%clk 0:00:00]} 32. Ne4 {[%clk 0:00:00]}  Nf6 {[%clk 0:00:00]} 33. Bh6+ {[%clk 0:00:00]}  Kh7 {[%clk 0:00:00]} 34. Neg5+ {[%clk 0:00:00]}  Kg8 {[%clk 0:00:00]} 35. Qf4 {[%clk 0:00:00]}  Qe8 {[%clk 0:00:00]} 36. Nh4 {[%clk 0:00:00]}  N6h7 {[%clk 0:00:00]} 37. Nxh7 {[%clk 0:00:00]}  Kxh7 {[%clk 0:00:00]} 38. Bxf8 {[%clk 0:00:00]}  Qxf8 {[%clk 0:00:00]} 39. Bxg6+ {[%clk 0:00:00]}  Kg7 {[%clk 0:00:00]} 40. Qxf8+ {[%clk 0:00:00]}  Kxf8 {[%clk 0:00:00]} 41. Nf3 {[%clk 0:00:00]}  h4 {[%clk 0:00:00]} 42. Kf2 {[%clk 0:00:00]}  Kg7 {[%clk 0:00:00]} 43. Be4 {[%clk 0:00:00]}  Bf6 {[%clk 0:00:00]} 44. Ke3 {[%clk 0:00:00]}  Bd7 {[%clk 0:00:00]} 45. Bd3 {[%clk 0:00:00]}  Kh6 {[%clk 0:00:00]} 46. Kf4 {[%clk 0:00:00]}  Kh5 {[%clk 0:00:00]} 47. Bf5 {[%clk 0:00:00]}  Be8 {[%clk 0:00:00]} 48. Bg4+ {[%clk 0:00:00]}  Kg6 {[%clk 0:00:00]} 49. Bc8 {[%clk 0:00:00]}  b5 {[%clk 0:00:00]} 50. a5 {[%clk 0:00:00]}  bxc4 {[%clk 0:00:00]} 51. bxc4 {[%clk 0:00:00]}  Bd8 {[%clk 0:00:00]} 52. Bxa6 {[%clk 0:00:00]}  Bxa5 {[%clk 0:00:00]} 53. Nxh4+ {[%clk 0:00:00]}  Kf6 {[%clk 0:00:00]} 54. Nf5 {[%clk 0:00:00]} 1-0


[Site "https://www.chess.com"]